fUSD/lending_fUSD_20250812
["ID","MTS","AMOUNT","RATE_DAILY","PERIOD"]
[378710739,1754981432811,-9955.72778454,0.00040639,2]
[378710740,1754981432823,-617.9141118,0.00040639,2]
[378710741,1754981432834,-2105.38685513,0.00040639,2]
[378710742,1754981432846,-2648.2310888,0.00040639,2]
[378710743,1754981437715,-836.91403319,0.00030331,3]
[378710744,1754981437727,-939.08596681,0.00030331,3]
[378710745,1754981437736,-1082.07309125,0.00040639,2]
[378710750,1754981439776,-888.0,0.00030831,3]
[378710751,1754981439786,-1776.0,0.00033071,3]
[378710753,1754981439795,-596.38706848,0.00040639,2]
[378710755,1754981439806,-150.0,0.00040659,7]
[378710757,1754981439815,-5244.30137209,0.0004071,2]
[378710762,1754981440099,-888.0,0.00031331,3]
[378710763,1754981440110,-1776.0,0.00033571,3]
[378710764,1754981440120,-513.00862791,0.0004071,2]
[378710765,1754981440130,-5000.0,0.00040723,120]
[378710766,1754981440140,-666.0,0.00040733,3]
[378710767,1754981440149,-614.01,0.00040747,2]
[378710768,1754981440158,-150.0,0.0004076,7]
[378710769,1754981440167,-150.0,0.0004076,7]
[378710770,1754981440177,-150.0,0.0004076,7]
[378710771,1754981440187,-1000.0,0.00040763,2]
[378710772,1754981440196,-150.0,0.0004081,7]
[378710773,1754981440206,-3158.97,0.00040815,34]
[378710774,1754981440215,-337.45,0.00040829,2]
[378710775,1754981440224,-498.3,0.00040897,120]
[378710776,1754981440233,-150.0,0.00040961,7]
[378710777,1754981440242,-2013.42078665,0.00041,120]
[378710804,1754981442947,-304.57654823,0.00041,120]
[378710828,1754981445919,-875.24624838,0.00040435,2]
[378710829,1754981446031,-1507.38454062,0.00040435,2]
[378710830,1754981446043,-3231.67714057,0.00041,120]
[378710983,1754981873890,160.53,0.00013699,2]
[378711008,1754982043230,250.0,0.00015,2]
[378711009,1754982044339,300.0,0.00017,2]
[378711082,1754982632010,-180.73,0.00019256,2]
[378711083,1754982632020,-124.96824505,0.00021182,2]
[378711084,1754982632394,888.0,0.00019756,3]
[378711085,1754982636995,-125.03175495,0.00021182,2]
[378711086,1754982637004,-500.0,0.00021182,2]
[378711087,1754982637014,-910.14088572,0.00021182,2]
[378711142,1754982637901,-703.32647526,0.00021182,2]
[378711143,1754982637941,-886.53263902,0.00021182,2]
[378711144,1754982637951,-300.0,0.00021182,2]
[378711145,1754982637961,-300.0,0.00021182,2]
[378711146,1754982637970,-888.0,0.00021682,3]
[378711147,1754982637979,-1776.0,0.00021996,3]
[378711148,1754982637988,-150.0,0.000229,2]
[378711149,1754982637997,-1776.0,0.00023922,3]
[378711150,1754982638006,-230.0,0.0002408,2]
[378711151,1754982638016,-240.37,0.00033474,2]
[378711152,1754982638025,-151.81443629,0.00034,2]
[378711153,1754982638035,-200.0,0.00034,30]
[378711154,1754982638044,-240.37,0.00035204,2]
[378711155,1754982638053,-211.77135896,0.00035555,2]
[378711156,1754982638063,-457.93703655,0.00035555,2]
[378711157,1754982638073,-160.0,0.00035558,2]
[378711158,1754982638082,-1502.0,0.000356,2]
[378711159,1754982638091,-76.76345346,0.000356,2]
[378711160,1754982638110,-2476.55654654,0.000356,2]
[378711161,1754982638118,-181.03270863,0.00036927,120]
[378711162,1754982638128,-240.37,0.00036935,2]
[378711163,1754982638137,-280.0,0.000374,30]
[378711164,1754982638147,-333.0,0.0003742,2]
[378711165,1754982638156,-250.7528985,0.0003742,2]
[378711166,1754982638166,-2409.2553087,0.0003742,2]
[378711167,1754982638175,-377.0,0.00037652,2]
[378711168,1754982638184,-150.0,0.00037997,7]
[378711169,1754982638194,-150.0,0.00037997,7]
[378711170,1754982638203,-150.0,0.00037997,7]
[378711171,1754982638212,-150.0,0.00037997,7]
[378711172,1754982638222,-150.0,0.00037997,7]
[378711173,1754982638231,-150.0,0.00037997,7]
[378711174,1754982638240,-150.0,0.00037997,7]
[378711175,1754982638249,-150.0,0.00038246,7]
[378711176,1754982638258,-501.05,0.000383,2]
[378711177,1754982638272,-160.53,0.00038356,2]
[378711178,1754982638281,-1502.32003587,0.000384,2]
[378711179,1754982638291,-1267.416,0.000384,51]
[378711180,1754982638300,-174.613,0.000384,51]
[378711181,1754982638309,-150.0,0.00038494,7]
[378711182,1754982638320,-307.39,0.00038635,2]
[378711183,1754982638329,-240.37,0.00038665,2]
[378711184,1754982638339,-95.118418,0.00038742,7]
[378711186,1754982638350,-54.881582,0.00038742,7]
[378711188,1754982638359,-155.32,0.0003875,2]
[378711190,1754982638369,-150.0,0.00038754,2]
[378711192,1754982638378,-200.0,0.00038787,2]
[378711195,1754982638387,-208.6,0.00038789,120]
[378711197,1754982638396,-551.17311385,0.00038806,2]
[378711198,1754982638408,-1551.96145378,0.00038806,2]
[378711199,1754982638419,-1165.5,0.00038806,2]
[378711200,1754982638432,-99.39543237,0.00038806,2]
[378711201,1754982638441,-1000.0,0.00038821,120]
[378711202,1754982638451,-170.0,0.00038832,7]
[378711203,1754982638460,-150.0,0.00038991,7]
[378711205,1754982638470,-150.0,0.00039239,7]
[378711206,1754982638479,-150.0,0.00039405,7]
[378711207,1754982638488,-150.0,0.00039487,7]
[378711208,1754982638499,-4001.58580884,0.00039636,2]
[378711209,1754982638508,-151.14,0.0003973,2]
[378711210,1754982638517,-150.0,0.00039736,7]
[378711211,1754982638527,-151.14,0.00039751,2]
[378711212,1754982638536,-151.14,0.00039772,2]
[378711213,1754982638545,-113.60543411,0.00039793,2]
[378711214,1754982640018,-888.0,0.00022496,3]
[378711215,1754982640027,-1776.0,0.00024736,3]
[378711216,1754982640037,-37.53456589,0.00039793,2]
[378711217,1754982640046,-151.14,0.00039814,2]
[378711218,1754982640055,-151.14,0.00039835,2]
[378711219,1754982640065,-151.14,0.00039856,2]
[378711220,1754982640074,-151.14,0.00039877,2]
[378711221,1754982640084,-1162.64,0.00039878,120]
[378711222,1754982640093,-151.14,0.00039898,2]
[378711223,1754982640103,-151.14,0.00039918,2]
[378711224,1754982640112,-151.14,0.00039939,2]
[378711225,1754982640122,-151.14,0.0003996,2]
[378711226,1754982640131,-151.14,0.00039981,2]
[378711227,1754982640140,-150.0,0.00039984,7]
[378711228,1754982640150,-666.0,0.00039991,3]
[378711229,1754982640159,-6203.82205343,0.00039991,2]
[378711230,1754982640171,-8395.38794657,0.00039991,2]
[378711231,1754982640180,-4226.95073081,0.0004,91]
[378711232,1754982640189,-1928.64,0.0004,120]
[378711233,1754982640199,-400.0,0.0004,120]
[378711234,1754982640207,-3228.30487844,0.0004,120]
[378711235,1754982640217,-400.0,0.0004,120]
[378711236,1754982640226,-151.14,0.00040002,2]
[378711237,1754982640235,-151.14,0.00040023,2]
[378711238,1754982640244,-456.77,0.00040028,120]
[378711239,1754982640254,-151.14,0.00040044,2]
[378711240,1754982640263,-500.0,0.00040044,2]
[378711241,1754982640272,-150.79088083,0.00040044,2]
[378711242,1754982640282,-150.0,0.00040044,2]
[378711243,1754982640291,-152.05588404,0.00040044,2]
[378711244,1754982640300,-150.0,0.00040044,2]
[378711245,1754982640310,-198.04910704,0.00040044,2]
[378711246,1754982640320,-151.14,0.00040065,2]
[378711247,1754982640329,-5000.0,0.00040065,120]
[378711248,1754982640338,-151.14,0.00040086,2]
[378711250,1754982640347,-284.5445099,0.000401,120]
[378711252,1754982640356,-400.0,0.000401,120]
[378711254,1754982640366,-151.14,0.00040107,2]
[378711256,1754982640375,-150.0,0.00040108,7]
[378711258,1754982640384,-285.2,0.00040115,2]
[378711260,1754982640393,-151.14,0.00040127,2]
[378711262,1754982640402,-1503.16,0.000402,7]
[378711264,1754982640411,-400.0,0.000402,120]
[378711266,1754982640424,-400.0,0.000402,120]
[378711268,1754982640434,-150.0,0.00040232,7]
[378711270,1754982640443,-850.4439466,0.0004028,2]
[378711272,1754982640453,-326.47670324,0.00040285,2]
[378711274,1754982640463,-167.56,0.00040296,2]
[378711276,1754982640472,-400.0,0.000403,120]
[378711278,1754982640481,-400.0,0.000403,120]
[378711280,1754982640491,-500.0,0.00040318,2]
[378711282,1754982640503,-150.0,0.00040318,2]
[378711284,1754982640512,-1000.0,0.00040328,2]
[378711286,1754982640521,-300.0,0.00040388,2]
[378711288,1754982640530,-240.37,0.00040395,2]
[378711290,1754982640539,-400.0,0.000404,120]
[378711292,1754982640549,-400.0,0.000404,120]
[378711294,1754982640558,-150.0,0.00040481,7]
[378711296,1754982640567,-400.0,0.000405,120]
[378711298,1754982640577,-400.0,0.000405,120]
[378711300,1754982640586,-9535.25959545,0.0004056,2]
[378711302,1754982640595,-164.23,0.00040571,2]
[378711304,1754982640605,-642.63516037,0.00040592,2]
[378711306,1754982640614,-201.86284302,0.00040592,2]
[378711308,1754982640623,-400.0,0.000406,120]
[378711310,1754982640632,-400.0,0.000406,120]
[378711311,1754982640642,-441.16,0.00040693,2]
[378711313,1754982640651,-2551.79035647,0.00040699,2]
[378711315,1754982640660,-400.0,0.000407,120]
[378711317,1754982640669,-400.0,0.000407,120]
[378711318,1754982640679,-150.0,0.00040729,7]
[378711320,1754982640688,-200.0,0.00040736,2]
[378711322,1754982640696,-200.0,0.00040736,2]
[378711324,1754982640706,-200.0,0.00040736,2]
[378711325,1754982640715,-200.0,0.00040736,2]
[378711327,1754982640725,-200.0,0.00040736,2]
[378711329,1754982640734,-200.0,0.00040736,2]
[378711331,1754982640744,-200.0,0.00040736,2]
[378711333,1754982640753,-200.0,0.00040736,2]
[378711335,1754982640762,-200.0,0.00040736,2]
[378711336,1754982640771,-200.0,0.00040736,2]
[378711338,1754982640781,-200.0,0.00040736,2]
[378711340,1754982640791,-200.0,0.00040736,2]
[378711342,1754982640800,-200.0,0.00040736,2]
[378711344,1754982640809,-200.0,0.00040736,2]
[378711345,1754982640818,-200.0,0.00040736,2]
[378711347,1754982640828,-200.0,0.00040736,2]
[378711349,1754982640837,-200.0,0.00040736,2]
[378711351,1754982640849,-200.0,0.00040736,2]
[378711352,1754982640858,-200.0,0.00040736,2]
[378711354,1754982640867,-200.0,0.00040736,2]
[378711356,1754982640882,-850.4439466,0.0004075,2]
[378711358,1754982640902,-351.57553944,0.00040788,2]
[378711360,1754982640922,-843.0035059,0.00040793,7]
[378711362,1754982640935,-400.0,0.000408,120]
[378711363,1754982640944,-400.0,0.000408,120]
[378711365,1754982640954,-150.0,0.00040812,7]
[378711367,1754982640963,-182.0831156,0.00040829,6]
[378711369,1754982640972,-201.05123394,0.00040829,2]
[378711371,1754982640981,-151.0,0.00040829,2]
[378711372,1754982640990,-156.43749558,0.00040878,15]
[378711374,1754982640999,-6279.26084344,0.00040878,15]
[378711376,1754982641008,-2645.57296681,0.00040878,13]
[378711378,1754982641018,-173410.71230733,0.00040888,2]
[378711380,1754982641030,-8587.1606801,0.00040888,2]
[378711382,1754982641041,-1260.51020135,0.00040888,2]
[378711384,1754982641052,-419.77238971,0.00040888,2]
[378711386,1754982641063,-81548.43117249,0.00040888,2]
[378711389,1754982641085,-655.28295906,0.00040888,2]
[378711401,1754982642877,-455.21784825,0.00022996,3]
[378711402,1754982643131,-432.78215175,0.00022996,3]
[378711403,1754982643141,-654.5666094,0.00025236,3]
[378711407,1754982645878,-341.49253213,0.00023496,3]
[378711408,1754982645889,-267.777,0.00023496,3]
[378711409,1754982646011,-278.73046787,0.00023496,3]
[378711410,1754982646021,-206.89786209,0.00025236,3]
[378711411,1754982646032,-595.11,0.00025236,3]
[378711412,1754982646239,-313.06330969,0.00023996,3]
[378711413,1754982646251,-574.93669031,0.00023996,3]
[378711414,1754982646260,-319.42552851,0.00025236,3]
[378711415,1754982646270,-1776.0,0.00025736,3]
[378711416,1754982646280,-1776.0,0.00026236,3]
[378711417,1754982646290,-295.43119822,0.00040788,28]
[378711418,1754982646299,-25474.00412643,0.00040888,2]
[378711419,1754982646309,-14556.06578922,0.00040888,2]
[378711420,1754982646319,-11175.81744351,0.00040888,15]
[378711421,1754982646328,-151.0,0.00040888,2]
[378711422,1754982646337,-150.0,0.00040888,2]
[378711423,1754982646347,-400.0,0.000409,120]
[378711424,1754982646356,-400.0,0.000409,120]
[378711425,1754982646366,-153.57654823,0.000409,120]
[378711426,1754982646375,-154.10338004,0.00040961,14]
[378711427,1754982646385,-4146.0,0.00040966,2]
[378711428,1754982646394,-1172.673,0.00040966,2]
[378711429,1754982646403,-654.67,0.00040968,2]
[378711430,1754982646413,-654.67,0.00040969,2]
[378711431,1754982646424,-500.0,0.00040973,5]
[378711432,1754982646434,-500.0,0.00040973,5]
[378711433,1754982646444,-500.0,0.00040973,5]
[378711434,1754982646453,-150.0,0.00040977,7]
[378711435,1754982646462,-66447.0309996,0.00040978,3]
[378711436,1754982646472,-151.454094,0.00040988,30]
[378711437,1754982646481,-151.0,0.00040988,30]
[378711438,1754982646491,-151.0,0.00040988,30]
[378711439,1754982646502,-830.993886,0.00040988,30]
[378711440,1754982646512,-830.993886,0.00040988,30]
[378711441,1754982646521,-154.493978,0.00040988,30]
[378711442,1754982646530,-151.930932,0.00040988,30]
[378711444,1754982646540,-151.0,0.00040988,30]
[378711446,1754982646549,-196.883696,0.00040988,30]
[378711447,1754982646558,-151.0,0.00040988,30]
[378711448,1754982646567,-151.486598,0.00040988,30]
[378711449,1754982646577,-151.0,0.00040988,30]
[378711450,1754982646587,-65150.7744208,0.00040989,3]
[378711451,1754982646602,-1296.2565788,0.00040989,3]
[378711452,1754982646612,-151.0,0.00040989,30]
[378711453,1754982646621,-152.739649,0.0004099,30]
[378711454,1754982646630,-153.020573,0.0004099,30]
[378711455,1754982646640,-151.0,0.0004099,30]
[378711456,1754982646649,-151.0,0.0004099,30]
[378711457,1754982646659,-151.0,0.0004099,30]
[378711458,1754982646669,-255.75196,0.0004099,30]
[378711459,1754982646678,-830.993886,0.0004099,30]
[378711460,1754982646687,-830.993886,0.0004099,30]
[378711461,1754982646696,-151.0,0.0004099,30]
[378711462,1754982646705,-151.0,0.0004099,30]
[378711463,1754982646715,-167.410615,0.0004099,30]
[378711464,1754982646724,-156.319188,0.0004099,30]
[378711465,1754982646734,-842.72722232,0.00040999,120]
[378711466,1754982646743,-1000.0,0.00040999,120]
[378711467,1754982646751,-600.0,0.00040999,120]
[378711468,1754982646761,-160.03601013,0.00040999,120]
[378711469,1754982646770,-500.0,0.00040999,120]
[378711470,1754982646779,-1000.0,0.00040999,120]
[378711471,1754982646788,-600.0,0.00040999,120]
[378711472,1754982646797,-160.0,0.00040999,120]
[378711473,1754982646806,-600.0,0.00040999,120]
[378711474,1754982646815,-1000.0,0.00040999,120]
[378711475,1754982646824,-1000.0,0.00040999,120]
[378711476,1754982646833,-201.81957757,0.00040999,120]
[378711477,1754982646843,-1000.0,0.00040999,120]
[378711478,1754982646852,-1888.0,0.00040999,120]
[378711479,1754982646861,-1000.0,0.00040999,120]
[378711480,1754982646870,-151.0,0.00040999,120]
[378711481,1754982646880,-1957.856,0.00040999,120]
[378711482,1754982646889,-359.76179104,0.00040999,120]
[378711483,1754982646899,-2030.296672,0.00040999,120]
[378711484,1754982646908,-151.0,0.00040999,120]
[378711485,1754982646917,-1000.0,0.00040999,120]
[378711486,1754982646926,-2105.41764886,0.00040999,120]
[378711487,1754982646935,-151.0,0.00040999,120]
[378711488,1754982646944,-296.08140333,0.00040999,120]
[378711489,1754982646953,-151.0,0.00040999,120]
[378711490,1754982646962,-2183.31810187,0.00040999,120]
[378711491,1754982646971,-151.0,0.00040999,120]
[378711492,1754982646981,-156.587,0.00040999,120]
[378711493,1754982646991,-2264.10087164,0.00040999,120]
[378711494,1754982646999,-151.0,0.00040999,120]
[378711495,1754982647009,-2347.87260389,0.00040999,120]
[378711496,1754982647019,-151.0,0.00040999,120]
[378711497,1754982647028,-289.2750197,0.00040999,120]
[378711498,1754982647037,-2434.74389024,0.00040999,120]
[378711499,1754982647047,-2524.82941417,0.00040999,120]
[378711500,1754982647056,-200.0,0.00040999,120]
[378711501,1754982647065,-2618.2481025,0.00040999,120]
[378711502,1754982647074,-207.4,0.00040999,120]
[378711503,1754982647084,-250.0,0.00040999,120]
[378711504,1754982647093,-2715.12328229,0.00040999,120]
[378711505,1754982647102,-215.0738,0.00040999,120]
[378711506,1754982647112,-250.0,0.00040999,120]
[378711507,1754982647121,-2815.58284374,0.00040999,120]
[378711508,1754982647131,-223.0315306,0.00040999,120]
[378711509,1754982647140,-250.0,0.00040999,120]
[378711510,1754982647150,-1000.0,0.00040999,120]
[378711511,1754982647159,-2919.75940895,0.00040999,120]
[378711512,1754982647169,-231.28369723,0.00040999,120]
[378711513,1754982647178,-250.0,0.00040999,120]
[378711514,1754982647187,-1000.0,0.00040999,120]
[378711515,1754982647197,-3027.79050709,0.00040999,120]
[378711516,1754982647206,-239.84119403,0.00040999,120]
[378711517,1754982647215,-250.0,0.00040999,120]
[378711518,1754982647224,-1000.0,0.00040999,120]
[378711519,1754982647234,-248.71531821,0.00040999,120]
[378711520,1754982647243,-250.0,0.00040999,120]
[378711521,1754982647253,-151.0,0.00040999,120]
[378711522,1754982647262,-1000.0,0.00040999,120]
[378711523,1754982647271,-3139.81875585,0.00040999,120]
[378711524,1754982647281,-257.91778498,0.00040999,120]
[378711525,1754982647290,-250.0,0.00040999,120]
[378711526,1754982647299,-151.0,0.00040999,120]
[378711527,1754982647309,-1000.0,0.00040999,120]
[378711528,1754982647318,-3255.99204981,0.00040999,120]
[378711529,1754982647327,-250.0,0.00040999,120]
[378711530,1754982647336,-267.46074303,0.00040999,120]
[378711531,1754982647345,-1018.64889104,0.00040999,120]
[378711532,1754982647355,-3376.46375566,0.00040999,120]
[378711533,1754982647365,-250.0,0.00040999,120]
[378711534,1754982647374,-277.35679052,0.00040999,120]
[378711535,1754982647384,-3501.39291462,0.00040999,120]
[378711536,1754982647394,-250.0,0.00040999,120]
[378711537,1754982647403,-287.61899177,0.00040999,120]
[378711538,1754982647412,-3630.94445246,0.00040999,120]
[378711539,1754982647422,-298.26089446,0.00040999,120]
[378711540,1754982647434,-250.0,0.00040999,120]
[378711541,1754982647443,-1229.90718696,0.00040999,120]
[378711581,1754982722449,1000.0,0.000209,120]
[378711588,1754982819053,153.09,0.00013699,2]
[378711612,1754983009797,151.0,0.00013699,2]
[378711613,1754983012618,151.0,0.00013699,2]
[378711619,1754983068204,-1566.78,0.00019,2]
[378711660,1754983509002,2108.62126309,0.00016,2]
[378711661,1754983509027,2108.62126309,0.00016,2]
[378711662,1754983509052,967.6812084,0.00016,2]
[378711687,1754983767871,171.33,0.00013699,2]
[378711688,1754983768103,-5004.206046,0.00018,2]
[378711699,1754983805149,-1200.0,0.00017999,2]
[378711700,1754983805174,-31408.80142255,0.00018,2]
[378711703,1754983828797,-1200.0,0.00018,2]
[378711709,1754983832262,-151.0,0.00019,2]
[378711710,1754983832272,-151.0,0.00019,2]
[378711711,1754983832282,-250.0,0.000198,2]
[378711712,1754983832291,-249.824924,0.00024,2]
[378711713,1754983832301,-11.104276,0.0003049,2]
[378711714,1754983832312,-200.66708296,0.0003049,2]
[378711715,1754983832322,-457.93703655,0.0003049,2]
[378711716,1754983832331,-249.12,0.00034092,2]
[378711717,1754983832341,-249.12,0.00035822,2]
[378711718,1754983832350,-500.0,0.00036929,2]
[378711719,1754983832359,-459.6334974,0.00036929,2]
[378711720,1754983832371,-13.29167118,0.00036929,2]
[378711721,1754983832380,-178.12,0.00037212,2]
[378711722,1754983832389,-280.0,0.000374,30]
[378711723,1754983832398,-249.12,0.00037553,2]
[378711724,1754983832408,-362.57,0.00037553,2]
[378711725,1754983832417,-186.43619056,0.00037553,2]
[378711726,1754983832437,-511.19380944,0.00037553,2]
[378711727,1754983832446,-171.33,0.00038356,2]
[378711728,1754983832456,-141.25575569,0.000387,2]
[378711729,1754983832467,-226.92424431,0.000387,2]
[378711730,1754983832476,-251.6559542,0.00038923,7]
[378711731,1754983832508,-503.57763178,0.00038923,7]
[378711732,1754983832534,-5588.73009915,0.00038923,7]
[378711733,1754983832553,-4346.23541625,0.00038923,7]
[378711734,1754983832564,-1404.09089862,0.00038923,7]
[378711735,1754983832573,-86.03410138,0.00038948,2]
[378711737,1754983832599,-199.16589862,0.00038948,2]
[378711739,1754983832608,-155.32,0.00038995,2]
[378711741,1754983832618,-5865.56860183,0.00039,120]
[378711745,1754983832658,888.0,0.000203,3]
[378711747,1754983832675,-410.18768663,0.0002254,3]
[378711749,1754983832686,-1365.81231337,0.0002254,3]
[378711751,1754983832695,-2416.88517231,0.00039,120]
[378711798,1754983838271,-151.5393015,0.00038995,2]
[378711799,1754983838281,-2098.0095779,0.00039,120]
[378711841,1754983840150,-358.28514,0.00039,120]
[378711842,1754983840253,-7610.15158632,0.00039,120]
[378711843,1754983840263,-249.12,0.00039283,2]
[378711844,1754983840272,-500.0,0.00039408,2]
[378711845,1754983840282,-188.07744318,0.00039434,15]
[378711846,1754983840291,-196.63125596,0.00039434,15]
[378711847,1754983840301,-164.23,0.00039435,2]
[378711848,1754983840311,-150.0,0.00039491,2]
[378711849,1754983840320,-888.0,0.00039495,3]
[378711850,1754983840330,-844.04,0.0003952,2]
[378711851,1754983840340,-418.7,0.0003966,120]
[378711852,1754983840349,-159.59,0.00039725,120]
[378711853,1754983840359,-5000.0,0.00039806,120]
[378711854,1754983840369,-666.0,0.00039867,3]
[378711855,1754983840379,-15508.65,0.00039872,2]
[378711856,1754983840388,-5166.34,0.0004,120]
[378711857,1754983840398,-174.614,0.00040104,57]
[378711858,1754983840407,-1013.933,0.00040104,57]
[378711859,1754983840417,-167.56,0.00040162,2]
[378711860,1754983840427,-1000.0,0.00040167,2]
[378711861,1754983840436,-1104.56,0.000406,7]
[378711862,1754983840446,-200.0,0.00040736,2]
[378711863,1754983840455,-200.0,0.00040736,2]
[378711864,1754983840464,-200.0,0.00040736,2]
[378711865,1754983840474,-200.0,0.00040736,2]
[378711866,1754983840483,-200.0,0.00040736,2]
[378711867,1754983840493,-200.0,0.00040736,2]
[378711868,1754983840502,-200.0,0.00040736,2]
[378711869,1754983840512,-200.0,0.00040736,2]
[378711870,1754983840521,-200.0,0.00040736,2]
[378711871,1754983840530,-200.0,0.00040736,2]
[378711872,1754983840540,-200.0,0.00040736,2]
[378711874,1754983840549,-200.0,0.00040736,2]
[378711876,1754983840558,-200.0,0.00040736,2]
[378711878,1754983840567,-200.0,0.00040736,2]
[378711881,1754983840576,-200.0,0.00040736,2]
[378711883,1754983840586,-200.0,0.00040736,2]
[378711885,1754983840595,-200.0,0.00040736,2]
[378711886,1754983840604,-200.0,0.00040736,2]
[378711888,1754983840613,-200.0,0.00040736,2]
[378711889,1754983840622,-200.0,0.00040736,2]
[378711891,1754983840631,-1253.0,0.00040756,2]
[378711893,1754983840640,-1156.35691436,0.00040756,2]
[378711894,1754983840790,-14.64308564,0.00040756,2]
[378711895,1754983840799,-12860.77099753,0.000408,120]
[378711905,1754983843158,-888.0,0.00039783,3]
[378711906,1754983843168,-2123.29539032,0.000408,120]
[378711907,1754983843179,-312.25,0.000408,120]
[378711908,1754983843191,-17590.00000051,0.000408,120]
[378711909,1754983843202,-8613.68361164,0.000408,120]
[378711910,1754983843211,-523.84010917,0.000408,30]
[378711911,1754983843221,-10058.23569915,0.00040898,15]
[378711912,1754983843231,-400.0,0.000409,120]
[378711913,1754983843249,-339.418948,0.000409,120]
[378711914,1754983843260,-400.0,0.000409,120]
[378711915,1754983843269,-400.0,0.000409,120]
[378711916,1754983843278,-593.66,0.000409,30]
[378711917,1754983843288,-596.77,0.000409,30]
[378711918,1754983843298,-153.57654823,0.000409,120]
[378711919,1754983843308,-609.43,0.00040905,30]
[378711920,1754983843318,-150.0,0.00040984,2]
[378711921,1754983843327,-151.0,0.00040989,30]
[378711922,1754983843337,-165.93364377,0.0004099,14]
[378711923,1754983843346,-1094.13971481,0.0004099,14]
[378711924,1754983843356,-151.0,0.0004099,14]
[378711925,1754983843365,-151.0,0.0004099,14]
[378711926,1754983843374,-151.0,0.0004099,14]
[378711927,1754983843383,-151.0,0.0004099,14]
[378711928,1754983843392,-151.0,0.0004099,14]
[378711929,1754983843402,-151.0,0.0004099,14]
[378711930,1754983843412,-151.0,0.0004099,14]
[378711931,1754983843421,-151.0,0.0004099,14]
[378711932,1754983843431,-151.0,0.0004099,14]
[378711933,1754983843440,-151.0,0.0004099,14]
[378711934,1754983843449,-151.0,0.0004099,14]
[378711935,1754983843459,-151.0,0.0004099,14]
[378711936,1754983843468,-151.0,0.0004099,14]
[378711937,1754983843478,-151.0,0.0004099,14]
[378711938,1754983843487,-151.0,0.0004099,14]
[378711939,1754983843496,-151.0,0.0004099,14]
[378711940,1754983843506,-151.0,0.0004099,14]
[378711941,1754983843515,-151.0,0.0004099,14]
[378711942,1754983843524,-151.0,0.0004099,14]
[378711943,1754983843533,-151.0,0.0004099,14]
[378711944,1754983843543,-151.0,0.0004099,14]
[378711945,1754983843552,-151.0,0.0004099,14]
[378711946,1754983843561,-151.0,0.0004099,14]
[378711947,1754983843570,-153.17432208,0.0004099,14]
[378711948,1754983843580,-160.0,0.00040998,120]
[378711949,1754983843589,-299.8319358,0.00040998,120]
[378711950,1754983843598,-600.0,0.00040998,120]
[378711951,1754983843607,-316.23045959,0.00040998,120]
[378711952,1754983843616,-200.0,0.00040998,120]
[378711953,1754983843625,-1888.0,0.00040998,120]
[378711954,1754983843634,-250.0,0.00040998,120]
[378711955,1754983843644,-207.4,0.00040998,120]
[378711956,1754983843653,-1957.856,0.00040998,120]
[378711957,1754983843662,-250.0,0.00040998,120]
[378711958,1754983843672,-2030.296672,0.00040998,120]
[378711959,1754983843681,-215.0738,0.00040998,120]
[378711961,1754983843690,-250.0,0.00040998,120]